[Event "Early-Titled-Tuesday-Blitz-February-27-2024"]
[Site "Chess.com"]
[Date "2024.02.27"]
[Round "1"]
[White "santosalberto1987"]
[Black "Dewarfd"]
[Result "1-0"]
[WhiteElo "2572"]
[BlackElo "2152"]
[TimeControl "180+1"]
[EndTime "8:06:39 PST"]
[Termination "santosalberto1987 won by resignation"]

1. e4 {[%clk 0:03:00.6]} 1... c5 {[%clk 0:02:58.4]} 2. Nf3 {[%clk 0:02:58.6]}
2... Nc6 {[%clk 0:02:57.4]} 3. d4 {[%clk 0:02:57.9]} 3... cxd4 {[%clk
0:02:57.5]} 4. Nxd4 {[%clk 0:02:58.8]} 4... g6 {[%clk 0:02:57.9]} 5. Nc3 {[%clk
0:02:56.3]} 5... Bg7 {[%clk 0:02:58]} 6. Be3 {[%clk 0:02:56.7]} 6... Nf6 {[%clk
0:02:57.9]} 7. Bc4 {[%clk 0:02:57.2]} 7... O-O {[%clk 0:02:56.3]} 8. Bb3 {[%clk
0:02:56.9]} 8... d6 {[%clk 0:02:51.2]} 9. f3 {[%clk 0:02:56.7]} 9... Na5 {[%clk
0:02:50.1]} 10. h4 {[%clk 0:02:54.3]} 10... Nxb3 {[%clk 0:02:43.2]} 11. axb3
{[%clk 0:02:45.5]} 11... a6 {[%clk 0:02:24.6]} 12. Qd2 {[%clk 0:02:44.2]} 12...
h5 {[%clk 0:02:13.5]} 13. Bh6 {[%clk 0:02:42.5]} 13... b5 {[%clk 0:02:12.3]} 14.
Bxg7 {[%clk 0:02:39.8]} 14... Kxg7 {[%clk 0:02:12]} 15. Ndxb5 {[%clk 0:02:39]}
15... Qb6 {[%clk 0:01:57.6]} 16. Qd4 {[%clk 0:02:34.5]} 16... Qc6 {[%clk
0:01:36.9]} 17. Na7 {[%clk 0:02:27.3]} 17... Qb7 {[%clk 0:01:24.1]} 18. Nxc8
{[%clk 0:02:26.4]} 18... Raxc8 {[%clk 0:01:23.5]} 19. O-O {[%clk 0:02:24.6]}
19... Rfd8 {[%clk 0:01:12.1]} 20. Ra5 {[%clk 0:02:23]} 20... e5 {[%clk 0:00:59]}
21. Qd3 {[%clk 0:02:20.5]} 21... Rc6 {[%clk 0:00:54.5]} 22. Rfa1 {[%clk
0:02:13.6]} 22... Ra8 {[%clk 0:00:52.4]} 23. Kh2 {[%clk 0:02:08.7]} 23... Qb6
{[%clk 0:00:44.5]} 24. Nd5 {[%clk 0:02:04.3]} 24... Nxd5 {[%clk 0:00:43]} 25.
exd5 {[%clk 0:02:04.4]} 25... Rc7 {[%clk 0:00:20.8]} 26. Rxa6 {[%clk 0:01:51.7]}
26... Rxa6 {[%clk 0:00:21.7]} 27. Rxa6 {[%clk 0:01:51.8]} 27... Qf2 {[%clk
0:00:21.7]} 28. c4 {[%clk 0:01:40.3]} 28... Qxh4+ {[%clk 0:00:21.2]} 29. Kg1
{[%clk 0:01:40.6]} 29... Qe1+ {[%clk 0:00:20.2]} 30. Qf1 {[%clk 0:01:40.6]}
30... Qe3+ {[%clk 0:00:18.8]} 31. Qf2 {[%clk 0:01:40.6]} 31... Qc1+ {[%clk
0:00:16.9]} 32. Kh2 {[%clk 0:01:37]} 32... Qf4+ {[%clk 0:00:13.6]} 33. Qg3
{[%clk 0:01:36.9]} 33... Qe3 {[%clk 0:00:08.5]} 34. Rxd6 {[%clk 0:01:35.1]}
34... Re7 {[%clk 0:00:07]} 35. Rc6 {[%clk 0:01:22.5]} 35... h4 {[%clk
0:00:05.3]} 36. Qxh4 {[%clk 0:01:20.4]} 36... g5 {[%clk 0:00:05.3]} 37. Qe4
{[%clk 0:01:12.9]} 37... Re8 {[%clk 0:00:04.8]} 38. Qxe3 {[%clk 0:01:12.4]} 1-0

[Event "Early-Titled-Tuesday-Blitz-February-27-2024"]
[Site "Chess.com"]
[Date "2024.02.27"]
[Round "1"]
[White "scarabee43"]
[Black "Manukyan_Artak"]
[Result "1-0"]
[WhiteElo "2876"]
[BlackElo "2487"]
[TimeControl "180+1"]
[EndTime "8:06:40 PST"]
[Termination "scarabee43 won by resignation"]

1. Nf3 {[%clk 0:03:00.9]} 1... Nf6 {[%clk 0:02:57.9]} 2. c4 {[%clk 0:03:01.1]}
2... g6 {[%clk 0:02:56.9]} 3. Nc3 {[%clk 0:03:01.2]} 3... c5 {[%clk 0:02:55.9]}
4. e3 {[%clk 0:02:58.4]} 4... Bg7 {[%clk 0:02:55.9]} 5. d4 {[%clk 0:02:59.1]}
5... d6 {[%clk 0:02:52.4]} 6. Be2 {[%clk 0:02:58.6]} 6... O-O {[%clk 0:02:51.9]}
7. O-O {[%clk 0:02:59.2]} 7... Nc6 {[%clk 0:02:51.3]} 8. d5 {[%clk 0:02:59]}
8... Ne5 {[%clk 0:02:49.5]} 9. Nxe5 {[%clk 0:02:58.6]} 9... dxe5 {[%clk
0:02:50.4]} 10. e4 {[%clk 0:02:55.2]} 10... e6 {[%clk 0:02:49.2]} 11. Be3 {[%clk
0:02:50.3]} 11... exd5 {[%clk 0:02:48.7]} 12. cxd5 {[%clk 0:02:50.7]} 12... b6
{[%clk 0:02:44.8]} 13. a3 {[%clk 0:02:49.6]} 13... a5 {[%clk 0:02:39.3]} 14. f3
{[%clk 0:02:43.7]} 14... Nh5 {[%clk 0:02:38.4]} 15. g3 {[%clk 0:02:36.4]} 15...
f5 {[%clk 0:02:37.2]} 16. exf5 {[%clk 0:02:21.3]} 16... gxf5 {[%clk 0:02:35.8]}
17. Bf2 {[%clk 0:02:14.1]} 17... f4 {[%clk 0:02:14.5]} 18. g4 {[%clk 0:02:13.7]}
18... Nf6 {[%clk 0:02:14.8]} 19. Qc2 {[%clk 0:02:04.8]} 19... h5 {[%clk
0:02:00.1]} 20. g5 {[%clk 0:02:01.5]} 20... Nh7 {[%clk 0:01:59]} 21. h4 {[%clk
0:02:01.3]} 21... Bf5 {[%clk 0:01:54.4]} 22. Bd3 {[%clk 0:02:00.6]} 22... Bxd3
{[%clk 0:01:50.8]} 23. Qxd3 {[%clk 0:02:01.1]} 23... Qd7 {[%clk 0:01:48.3]} 24.
Kg2 {[%clk 0:01:58]} 24... Rfd8 {[%clk 0:01:41.1]} 25. Rad1 {[%clk 0:01:57]}
25... Nf8 {[%clk 0:01:33]} 26. d6 {[%clk 0:01:51.7]} 26... Ne6 {[%clk
0:01:25.3]} 27. Qg6 {[%clk 0:01:46.3]} 27... Qf7 {[%clk 0:01:22.2]} 28. Qxf7+
{[%clk 0:01:41.1]} 28... Kxf7 {[%clk 0:01:23.1]} 29. Ne4 {[%clk 0:01:40.8]}
29... Nd4 {[%clk 0:01:18.2]} 30. Rfe1 {[%clk 0:01:27.9]} 30... c4 {[%clk
0:01:09.6]} 31. Rc1 {[%clk 0:01:16.9]} 31... Rac8 {[%clk 0:01:08.6]} 32. a4
{[%clk 0:01:16.1]} 32... Rc6 {[%clk 0:00:25.5]} 33. Rc3 {[%clk 0:01:05.2]} 33...
b5 {[%clk 0:00:25]} 34. Bxd4 {[%clk 0:00:57.9]} 34... exd4 {[%clk 0:00:24.1]}
35. axb5 {[%clk 0:00:58.5]} 35... Rb6 {[%clk 0:00:17.3]} 36. Rxc4 {[%clk
0:00:58]} 36... Rxb5 {[%clk 0:00:17.7]} 37. Rc7+ {[%clk 0:00:55.5]} 37... Kg8
{[%clk 0:00:16.1]} 38. Re2 {[%clk 0:00:53.7]} 38... d3 {[%clk 0:00:15.8]} 39.
Rd2 {[%clk 0:00:54.2]} 39... Rxb2 {[%clk 0:00:15.7]} 40. Rxg7+ {[%clk
0:00:54.3]} 40... Kxg7 {[%clk 0:00:14.9]} 41. Rxb2 {[%clk 0:00:54.6]} 1-0

[Event "Early-Titled-Tuesday-Blitz-February-27-2024"]
[Site "Chess.com"]
[Date "2024.02.27"]
[Round "1"]
[White "Gennady_Kozlov"]
[Black "Matols"]
[Result "1/2-1/2"]
[WhiteElo "2654"]
[BlackElo "2371"]
[TimeControl "180+1"]
[EndTime "8:06:40 PST"]
[Termination "Game drawn by agreement"]

1. Nf3 {[%clk 0:02:59.5]} 1... d5 {[%clk 0:02:59.5]} 2. g3 {[%clk 0:03:00.4]}
2... Nf6 {[%clk 0:02:59.5]} 3. Bg2 {[%clk 0:03:00.7]} 3... c6 {[%clk 0:02:59.7]}
4. O-O {[%clk 0:03:01]} 4... Bg4 {[%clk 0:03:00.3]} 5. Ne5 {[%clk 0:02:59.5]}
5... Bf5 {[%clk 0:03:00.1]} 6. d4 {[%clk 0:02:59.1]} 6... e6 {[%clk 0:03:00.1]}
7. c3 {[%clk 0:02:58.4]} 7... Be7 {[%clk 0:03:00.5]} 8. Nd2 {[%clk 0:02:55.2]}
8... O-O {[%clk 0:02:59.4]} 9. Qb3 {[%clk 0:02:54.2]} 9... Qb6 {[%clk
0:02:56.6]} 10. Re1 {[%clk 0:02:53.4]} 10... Nbd7 {[%clk 0:02:54.4]} 11. Nxd7
{[%clk 0:02:49.6]} 11... Nxd7 {[%clk 0:02:53.6]} 12. e4 {[%clk 0:02:50.5]} 12...
dxe4 {[%clk 0:02:50.1]} 13. Bxe4 {[%clk 0:02:51.4]} 13... Bxe4 {[%clk
0:02:47.7]} 14. Nxe4 {[%clk 0:02:52.3]} 14... Nf6 {[%clk 0:02:45.5]} 15. Bg5
{[%clk 0:02:49.3]} 15... Qxb3 {[%clk 0:02:36]} 16. axb3 {[%clk 0:02:47.7]} 16...
Rfd8 {[%clk 0:02:32.2]} 17. Nxf6+ {[%clk 0:02:41.8]} 17... Bxf6 {[%clk
0:02:30.6]} 18. Bxf6 {[%clk 0:02:41.2]} 18... gxf6 {[%clk 0:02:31.5]} 19. Ra5
{[%clk 0:02:39.8]} 19... Rd5 {[%clk 0:02:29]} 20. Rxd5 {[%clk 0:02:39]} 20...
cxd5 {[%clk 0:02:29.9]} 21. Kg2 {[%clk 0:02:34.8]} 21... a6 {[%clk 0:02:24.9]}
22. f4 {[%clk 0:02:33.6]} 22... f5 {[%clk 0:02:23.5]} 23. Kf3 {[%clk 0:02:33.1]}
23... Kg7 {[%clk 0:02:23.2]} 24. h3 {[%clk 0:02:29.5]} 24... h5 {[%clk 0:02:21]}
25. Ra1 {[%clk 0:02:27]} 25... Rc8 {[%clk 0:02:18.1]} 26. Ra4 {[%clk 0:02:25.8]}
26... Kf6 {[%clk 0:02:17.6]} 27. Rb4 {[%clk 0:02:24.8]} 27... b5 {[%clk
0:02:12.9]} 28. Ke3 {[%clk 0:02:10.9]} 28... Ke7 {[%clk 0:02:11.2]} 29. c4
{[%clk 0:02:06.9]} 29... dxc4 {[%clk 0:02:07.8]} 30. bxc4 {[%clk 0:02:06.4]}
30... Rxc4 {[%clk 0:02:02.9]} 31. Rb3 {[%clk 0:02:00.8]} 31... Kd6 {[%clk
0:02:01.3]} 32. Ra3 {[%clk 0:02:00.1]} 32... Rc6 {[%clk 0:01:58.5]} 33. Ra1
{[%clk 0:01:56.2]} 33... Kd5 {[%clk 0:01:58]} 34. Kd3 {[%clk 0:01:55.8]} 34...
f6 {[%clk 0:01:37.2]} 35. b3 {[%clk 0:01:51.9]} 35... b4 {[%clk 0:01:34.1]} 36.
Ra5+ {[%clk 0:01:50.5]} 36... Kd6 {[%clk 0:01:33]} 37. Kd2 {[%clk 0:01:39.7]}
37... Kc7 {[%clk 0:01:26.6]} 38. Ra4 {[%clk 0:01:37.5]} 38... Rc3 {[%clk
0:00:58.3]} 39. Rxa6 {[%clk 0:01:33.7]} 39... Rxg3 {[%clk 0:00:56.6]} 40. Rxe6
{[%clk 0:01:32.5]} 40... Rxb3 {[%clk 0:00:50.3]} 41. Rxf6 {[%clk 0:01:25.5]}
41... Rxh3 {[%clk 0:00:50.1]} 42. Rxf5 {[%clk 0:01:24.9]} 42... b3 {[%clk
0:00:49.7]} 43. Rf6 {[%clk 0:01:11.4]} 43... b2 {[%clk 0:00:46.1]} 44. Kc2
{[%clk 0:01:10.4]} 44... Rh2+ {[%clk 0:00:46.3]} 45. Kb1 {[%clk 0:01:10]} 45...
h4 {[%clk 0:00:45.3]} 46. Rh6 {[%clk 0:01:09.2]} 46... h3 {[%clk 0:00:43.3]} 47.
d5 {[%clk 0:01:07.9]} 47... Kd7 {[%clk 0:00:42]} 48. f5 {[%clk 0:01:06]} 48...
Rf2 {[%clk 0:00:37.2]} 1/2-1/2

[Event "Early-Titled-Tuesday-Blitz-February-27-2024"]
[Site "Chess.com"]
[Date "2024.02.27"]
[Round "1"]
[White "kai_nov"]
[Black "NFChess13"]
[Result "1/2-1/2"]
[WhiteElo "2346"]
[BlackElo "2642"]
[TimeControl "180+1"]
[EndTime "8:06:40 PST"]
[Termination "Game drawn by repetition"]

1. e4 {[%clk 0:01:31.5]} 1... e5 {[%clk 0:02:53]} 2. Nf3 {[%clk 0:01:30.5]} 2...
Nf6 {[%clk 0:02:52.8]} 3. Bc4 {[%clk 0:01:28.5]} 3... Nc6 {[%clk 0:02:47.9]} 4.
d3 {[%clk 0:01:28.3]} 4... Be7 {[%clk 0:02:45.4]} 5. O-O {[%clk 0:01:28.7]} 5...
d6 {[%clk 0:02:44]} 6. Nc3 {[%clk 0:01:29.3]} 6... h6 {[%clk 0:02:43.5]} 7. Be3
{[%clk 0:01:29.2]} 7... g5 {[%clk 0:02:42.7]} 8. d4 {[%clk 0:01:29.6]} 8... g4
{[%clk 0:02:38.6]} 9. dxe5 {[%clk 0:01:28.4]} 9... gxf3 {[%clk 0:02:30]} 10.
exf6 {[%clk 0:01:28]} 10... fxg2 {[%clk 0:02:30.4]} 11. fxe7 {[%clk 0:01:17.7]}
11... gxf1=Q+ {[%clk 0:02:28.5]} 12. Kxf1 {[%clk 0:01:18]} 12... Qxe7 {[%clk
0:02:08.5]} 13. Nd5 {[%clk 0:01:14.8]} 13... Qxe4 {[%clk 0:02:07]} 14. Nf6+
{[%clk 0:01:12.8]} 14... Kd8 {[%clk 0:02:05]} 15. Nxe4 {[%clk 0:01:12.6]} 15...
Ne5 {[%clk 0:02:05.3]} 16. Be2 {[%clk 0:01:09.2]} 16... Rg8 {[%clk 0:02:03.1]}
17. Ng3 {[%clk 0:01:03.8]} 17... h5 {[%clk 0:01:53.4]} 18. Bf4 {[%clk
0:01:01.5]} 18... Ng6 {[%clk 0:01:47.8]} 19. Bg5+ {[%clk 0:00:58]} 19... Ke8
{[%clk 0:01:42]} 20. Bxh5 {[%clk 0:00:50.6]} 20... Kf8 {[%clk 0:01:41.1]} 21.
Bh6+ {[%clk 0:00:48.8]} 21... Ke8 {[%clk 0:01:40.7]} 22. Qe2+ {[%clk 0:00:47.9]}
22... Be6 {[%clk 0:01:41.1]} 23. Qb5+ {[%clk 0:00:47.4]} 23... Ke7 {[%clk
0:01:39.2]} 24. Qxb7 {[%clk 0:00:44.5]} 24... Rad8 {[%clk 0:01:39.1]} 25. Qxc7+
{[%clk 0:00:44.3]} 25... Rd7 {[%clk 0:01:39.6]} 26. Qc3 {[%clk 0:00:40.2]} 26...
Ne5 {[%clk 0:01:39.9]} 27. Bf4 {[%clk 0:00:36.5]} 27... Bc4+ {[%clk 0:01:33.8]}
28. Kg1 {[%clk 0:00:34.1]} 28... Be6 {[%clk 0:01:32.7]} 29. Bxe5 {[%clk
0:00:34]} 29... dxe5 {[%clk 0:01:33.6]} 30. Qxe5 {[%clk 0:00:33.4]} 30... Rd5
{[%clk 0:01:34]} 31. Qc7+ {[%clk 0:00:32.8]} 31... Kf6 {[%clk 0:01:34.4]} 32.
Qc3+ {[%clk 0:00:26.6]} 32... Ke7 {[%clk 0:01:33.8]} 33. Re1 {[%clk 0:00:18.6]}
33... Rxh5 {[%clk 0:01:31.5]} 34. Qc7+ {[%clk 0:00:18.6]} 34... Kf6 {[%clk
0:01:30.1]} 35. Qf4+ {[%clk 0:00:18.6]} 35... Rf5 {[%clk 0:01:27.2]} 36. Qh4+
{[%clk 0:00:17.9]} 36... Kg6 {[%clk 0:01:22.5]} 37. Nxf5 {[%clk 0:00:16]} 37...
Kxf5+ {[%clk 0:01:23.4]} 38. Kf1 {[%clk 0:00:12.7]} 38... Rg4 {[%clk 0:01:21.1]}
39. Qh5+ {[%clk 0:00:12.7]} 39... Kf6 {[%clk 0:01:16.9]} 40. Qh6+ {[%clk
0:00:11.1]} 40... Ke7 {[%clk 0:01:16.2]} 41. Rd1 {[%clk 0:00:10.7]} 41... Re4
{[%clk 0:01:10.5]} 42. Qd2 {[%clk 0:00:09.2]} 42... Bh3+ {[%clk 0:01:08.7]} 43.
Kg1 {[%clk 0:00:09.4]} 43... Rg4+ {[%clk 0:01:08.8]} 44. Kh1 {[%clk 0:00:09.7]}
44... Bg2+ {[%clk 0:01:09.3]} 45. Kg1 {[%clk 0:00:10.1]} 45... Bh3+ {[%clk
0:01:09.7]} 46. Kh1 {[%clk 0:00:10.5]} 46... Bg2+ {[%clk 0:01:09.9]} 47. Kg1
{[%clk 0:00:11]} 47... Bh3+ {[%clk 0:01:09.5]} 1/2-1/2

[Event "Early-Titled-Tuesday-Blitz-February-27-2024"]
[Site "Chess.com"]
[Date "2024.02.27"]
[Round "1"]
[White "HATilay"]
[Black "Knightmare1014"]
[Result "1-0"]
[WhiteElo "2637"]
[BlackElo "2309"]
[TimeControl "180+1"]
[EndTime "8:06:40 PST"]
[Termination "HATilay won by checkmate"]

1. e4 {[%clk 0:02:33.3]} 1... c5 {[%clk 0:02:59.2]} 2. Nf3 {[%clk 0:02:32.9]}
2... e6 {[%clk 0:02:58.8]} 3. d4 {[%clk 0:02:32.2]} 3... cxd4 {[%clk 0:02:58.6]}
4. Nxd4 {[%clk 0:02:33.1]} 4... a6 {[%clk 0:02:58.4]} 5. Nc3 {[%clk 0:02:23.5]}
5... Qc7 {[%clk 0:02:58.5]} 6. g3 {[%clk 0:01:53.7]} 6... b5 {[%clk 0:02:52]} 7.
Bg2 {[%clk 0:01:52.5]} 7... Bb7 {[%clk 0:02:52.3]} 8. O-O {[%clk 0:01:52.5]}
8... Nc6 {[%clk 0:02:52.4]} 9. Bf4 {[%clk 0:01:47.2]} 9... e5 {[%clk 0:02:34.6]}
10. Nxc6 {[%clk 0:01:46.8]} 10... dxc6 {[%clk 0:02:34.3]} 11. Be3 {[%clk
0:01:44.9]} 11... Nf6 {[%clk 0:02:33.1]} 12. f4 {[%clk 0:01:44.3]} 12... Bd6
{[%clk 0:02:29.9]} 13. f5 {[%clk 0:01:44.2]} 13... O-O {[%clk 0:02:29.4]} 14. g4
{[%clk 0:01:44.6]} 14... b4 {[%clk 0:02:08.3]} 15. g5 {[%clk 0:01:36.7]} 15...
bxc3 {[%clk 0:01:55.8]} 16. gxf6 {[%clk 0:01:36.4]} 16... cxb2 {[%clk
0:01:28.7]} 17. Qg4 {[%clk 0:01:35.7]} 17... g6 {[%clk 0:01:22.4]} 18. Rab1
{[%clk 0:01:30.3]} 18... Rab8 {[%clk 0:00:47.8]} 19. Rxb2 {[%clk 0:01:27.2]}
19... Rfe8 {[%clk 0:00:38.2]} 20. Rb3 {[%clk 0:01:24.8]} 20... Ba8 {[%clk
0:00:36.3]} 21. Rf3 {[%clk 0:01:15.9]} 21... Bf8 {[%clk 0:00:24.3]} 22. Rh3
{[%clk 0:01:12.9]} 22... Rxb3 {[%clk 0:00:19.9]} 23. axb3 {[%clk 0:01:11.5]}
23... Qa5 {[%clk 0:00:18.6]} 24. Qh4 {[%clk 0:01:11.5]} 24... h5 {[%clk
0:00:16.7]} 25. Qg3 {[%clk 0:00:56.2]} 25... Kh7 {[%clk 0:00:15.5]} 26. Bf3
{[%clk 0:00:51.6]} 26... Bc5 {[%clk 0:00:05]} 27. Bxh5 {[%clk 0:00:47.3]} 27...
Bxe3+ {[%clk 0:00:04.8]} 28. Qxe3 {[%clk 0:00:47.9]} 28... Qa1+ {[%clk
0:00:04.8]} 29. Kg2 {[%clk 0:00:47.7]} 29... gxh5 {[%clk 0:00:03.3]} 30. Rxh5+
{[%clk 0:00:47.1]} 30... Kg8 {[%clk 0:00:03.6]} 31. Qg5+ {[%clk 0:00:47.6]}
31... Kf8 {[%clk 0:00:04]} 32. Rh8# {[%clk 0:00:48.5]} 1-0

[Event "Early-Titled-Tuesday-Blitz-February-27-2024"]
[Site "Chess.com"]
[Date "2024.02.27"]
[Round "1"]
[White "Goryachkina"]
[Black "LangesNasenhaar"]
[Result "1-0"]
[WhiteElo "2700"]
[BlackElo "2396"]
[TimeControl "180+1"]
[EndTime "8:06:41 PST"]
[Termination "Goryachkina won by checkmate"]

1. e4 {[%clk 0:02:59.8]} 1... g6 {[%clk 0:03:00.1]} 2. d4 {[%clk 0:02:59.5]}
2... Bg7 {[%clk 0:03:00.6]} 3. Nf3 {[%clk 0:02:58.9]} 3... c6 {[%clk 0:03:01.1]}
4. h3 {[%clk 0:02:56.2]} 4... d5 {[%clk 0:03:01.1]} 5. e5 {[%clk 0:02:56.3]}
5... f6 {[%clk 0:03:01.5]} 6. Bd3 {[%clk 0:02:50.5]} 6... Nd7 {[%clk 0:02:59]}
7. O-O {[%clk 0:02:44]} 7... fxe5 {[%clk 0:02:57.7]} 8. Nxe5 {[%clk 0:02:40.8]}
8... Nxe5 {[%clk 0:02:57.4]} 9. dxe5 {[%clk 0:02:41.3]} 9... Bxe5 {[%clk
0:02:40.7]} 10. Nd2 {[%clk 0:02:34.7]} 10... Nf6 {[%clk 0:02:31.9]} 11. Nf3
{[%clk 0:02:31.6]} 11... Bd6 {[%clk 0:02:29.2]} 12. Bh6 {[%clk 0:02:29.4]} 12...
Rg8 {[%clk 0:02:03.4]} 13. Re1 {[%clk 0:02:17.2]} 13... Qb6 {[%clk 0:01:52]} 14.
c4 {[%clk 0:02:11.5]} 14... Bd7 {[%clk 0:01:29.9]} 15. cxd5 {[%clk 0:02:00.5]}
15... Nxd5 {[%clk 0:01:27]} 16. Bc4 {[%clk 0:01:35.3]} 16... O-O-O {[%clk
0:01:20.1]} 17. Bxd5 {[%clk 0:01:30.5]} 17... cxd5 {[%clk 0:01:21]} 18. Qxd5
{[%clk 0:01:29.7]} 18... Kb8 {[%clk 0:01:09.9]} 19. Be3 {[%clk 0:01:24]} 19...
Qa6 {[%clk 0:01:09.1]} 20. Qb3 {[%clk 0:00:57.1]} 20... Ba4 {[%clk 0:00:58.5]}
21. Qc3 {[%clk 0:00:57.1]} 21... Rc8 {[%clk 0:00:54.7]} 22. Qd4 {[%clk
0:00:55.3]} 22... Rgf8 {[%clk 0:00:45.1]} 23. Rac1 {[%clk 0:00:49.5]} 23... Bc6
{[%clk 0:00:40.1]} 24. Ne5 {[%clk 0:00:46.6]} 24... Bxe5 {[%clk 0:00:23]} 25.
Qxe5+ {[%clk 0:00:46.7]} 25... Ka8 {[%clk 0:00:23.9]} 26. a3 {[%clk 0:00:46.8]}
26... Rf5 {[%clk 0:00:17.4]} 27. Qxe7 {[%clk 0:00:44.6]} 27... Rd5 {[%clk
0:00:17.5]} 28. Qe6 {[%clk 0:00:40.4]} 28... Re8 {[%clk 0:00:13]} 29. Qxe8+
{[%clk 0:00:34.8]} 29... Bxe8 {[%clk 0:00:09.4]} 30. Rc8# {[%clk 0:00:34.9]} 1-0

[Event "Early-Titled-Tuesday-Blitz-February-27-2024"]
[Site "Chess.com"]
[Date "2024.02.27"]
[Round "1"]
[White "MusicCityMaster"]
[Black "yuriydovzik"]
[Result "1-0"]
[WhiteElo "2567"]
[BlackElo "2127"]
[TimeControl "180+1"]
[EndTime "8:06:44 PST"]
[Termination "MusicCityMaster won on time"]

1. d4 {[%clk 0:02:59]} 1... Nf6 {[%clk 0:02:56]} 2. c4 {[%clk 0:02:58.2]} 2...
e6 {[%clk 0:02:54.3]} 3. Nf3 {[%clk 0:02:57.9]} 3... Bb4+ {[%clk 0:02:52.1]} 4.
Bd2 {[%clk 0:02:57.7]} 4... Bxd2+ {[%clk 0:02:50.6]} 5. Nbxd2 {[%clk 0:02:56.9]}
5... d5 {[%clk 0:02:48.4]} 6. Qc2 {[%clk 0:02:55.9]} 6... c6 {[%clk 0:02:45.6]}
7. g3 {[%clk 0:02:55.5]} 7... O-O {[%clk 0:02:41.9]} 8. Bg2 {[%clk 0:02:55.5]}
8... a5 {[%clk 0:02:40.8]} 9. O-O {[%clk 0:02:55.3]} 9... Na6 {[%clk 0:02:39.8]}
10. a3 {[%clk 0:02:54.8]} 10... Bd7 {[%clk 0:02:31.7]} 11. e4 {[%clk 0:02:52.3]}
11... dxe4 {[%clk 0:02:27.7]} 12. Nxe4 {[%clk 0:02:52.2]} 12... Nxe4 {[%clk
0:02:27.4]} 13. Qxe4 {[%clk 0:02:52.3]} 13... Nc7 {[%clk 0:02:18.1]} 14. Rad1
{[%clk 0:02:47.8]} 14... b5 {[%clk 0:02:16.2]} 15. Ne5 {[%clk 0:02:36.8]} 15...
Ra6 {[%clk 0:02:02.3]} 16. b3 {[%clk 0:02:26.3]} 16... a4 {[%clk 0:01:57.9]} 17.
b4 {[%clk 0:02:14.6]} 17... bxc4 {[%clk 0:01:53.4]} 18. Nxc4 {[%clk 0:02:14.6]}
18... Nd5 {[%clk 0:01:51.8]} 19. Rc1 {[%clk 0:02:14.7]} 19... Qb8 {[%clk
0:01:40.1]} 20. Ne5 {[%clk 0:02:13.3]} 20... Rd8 {[%clk 0:01:34.3]} 21. Rc5
{[%clk 0:02:12.5]} 21... Be8 {[%clk 0:01:32.8]} 22. Rfc1 {[%clk 0:02:12]} 22...
Qd6 {[%clk 0:01:26.3]} 23. h3 {[%clk 0:02:08.4]} 23... Nf6 {[%clk 0:01:25.4]}
24. Qd3 {[%clk 0:02:02.3]} 24... Raa8 {[%clk 0:01:15.8]} 25. Bxc6 {[%clk
0:01:55.3]} 25... Bxc6 {[%clk 0:01:00.6]} 26. Nxc6 {[%clk 0:01:55.3]} 26... Rd7
{[%clk 0:00:54.1]} 27. Ne5 {[%clk 0:01:40.9]} 27... Rdd8 {[%clk 0:00:51.9]} 28.
Rc7 {[%clk 0:01:38.5]} 28... Qxe5 {[%clk 0:00:44.1]} 29. dxe5 {[%clk 0:01:34.6]}
29... Rxd3 {[%clk 0:00:43.4]} 30. Rc8+ {[%clk 0:01:34.5]} 30... Rd8 {[%clk
0:00:39.5]} 31. Rxa8 {[%clk 0:01:34.4]} 31... Rxa8 {[%clk 0:00:38.7]} 32. exf6
{[%clk 0:01:34.5]} 32... gxf6 {[%clk 0:00:38.7]} 33. Rc5 {[%clk 0:01:34.4]}
33... f5 {[%clk 0:00:36.4]} 34. Ra5 {[%clk 0:01:31.5]} 34... Rc8 {[%clk
0:00:31.2]} 35. Rxa4 {[%clk 0:01:31.6]} 35... Rc1+ {[%clk 0:00:30.9]} 36. Kg2
{[%clk 0:01:31.5]} 36... Rb1 {[%clk 0:00:30.6]} 37. Ra5 {[%clk 0:01:31.1]} 37...
Kg7 {[%clk 0:00:27.7]} 38. b5 {[%clk 0:01:31.2]} 38... e5 {[%clk 0:00:25.2]} 39.
a4 {[%clk 0:01:31.2]} 39... e4 {[%clk 0:00:21.2]} 40. Ra6 {[%clk 0:01:31.1]}
40... Rb2 {[%clk 0:00:20.7]} 41. Kf1 {[%clk 0:01:30.9]} 41... Rb1+ {[%clk
0:00:19.6]} 42. Ke2 {[%clk 0:01:30.8]} 42... Rb2+ {[%clk 0:00:16.8]} 43. Ke3
{[%clk 0:01:30.9]} 43... Rb3+ {[%clk 0:00:16.8]} 44. Kd4 {[%clk 0:01:30.2]}
44... Rb2 {[%clk 0:00:14.1]} 45. b6 {[%clk 0:01:28.3]} 45... Rxf2 {[%clk
0:00:13.5]} 46. b7 {[%clk 0:01:27.8]} 46... Rb2 {[%clk 0:00:13.1]} 47. a5 {[%clk
0:01:27.7]} 47... Rb4+ {[%clk 0:00:09.1]} 48. Ke5 {[%clk 0:01:26.2]} 48... e3
{[%clk 0:00:07.9]} 49. Rb6 {[%clk 0:01:25.5]} 1-0